[Event "Titled Tuesday Blitz May 31 Late 2022"]
[White "Maghsoodloo, Parham"]
[Black "Terry, Renato"]
[WhiteFideId "12539929"]
[BlackFideId "3803457"]
[WhiteElo "2630"]
[BlackElo "2577"]
[Result "1/2-1/2"]
[Round "05"]
[TimeControl "180+1"]
[Date "2022.05.31"]
[WhiteClock "0:00:06"]
[BlackClock "0:00:04"]

1. e4 {[%clk 0:02:51]}  e6 {[%clk 0:03:00]} 2. d4 {[%clk 0:02:51]}  d5 {[%clk 0:03:00]} 3. e5 {[%clk 0:02:52]}  c5 {[%clk 0:03:00]} 4. c3 {[%clk 0:02:52]}  Qb6 {[%clk 0:03:01]} 5. Nf3 {[%clk 0:02:53]}  Bd7 {[%clk 0:03:00]} 6. Be2 {[%clk 0:02:49]}  cxd4 {[%clk 0:03:00]} 7. cxd4 {[%clk 0:02:49]}  Bb5 {[%clk 0:03:01]} 8. Bxb5+ {[%clk 0:02:41]}  Qxb5 {[%clk 0:03:02]} 9. Nc3 {[%clk 0:02:41]}  Bb4 {[%clk 0:02:58]} 10. Bd2 {[%clk 0:02:41]}  Bxc3 {[%clk 0:02:56]} 11. Bxc3 {[%clk 0:02:41]}  Nc6 {[%clk 0:02:55]} 12. Qe2 {[%clk 0:02:40]}  Qxe2+ {[%clk 0:02:55]} 13. Kxe2 {[%clk 0:02:40]}  Nge7 {[%clk 0:02:56]} 14. b4 {[%clk 0:02:36]}  a6 {[%clk 0:02:41]} 15. a4 {[%clk 0:02:35]}  Rc8 {[%clk 0:02:08]} 16. Kd3 {[%clk 0:02:28]}  Na7 {[%clk 0:02:04]} 17. Rhb1 {[%clk 0:02:11]}  b5 {[%clk 0:02:03]} 18. axb5 {[%clk 0:02:11]}  Nxb5 {[%clk 0:02:04]} 19. Bd2 {[%clk 0:02:10]}  Rc6 {[%clk 0:01:59]} 20. Rc1 {[%clk 0:02:09]}  Rxc1 {[%clk 0:01:50]} 21. Bxc1 {[%clk 0:02:10]}  Nc6 {[%clk 0:01:49]} 22. Bd2 {[%clk 0:02:06]}  Nc7 {[%clk 0:01:49]} 23. Ne1 {[%clk 0:01:41]}  Kd7 {[%clk 0:01:47]} 24. Nc2 {[%clk 0:01:39]}  Rb8 {[%clk 0:01:36]} 25. g4 {[%clk 0:01:37]}  f6 {[%clk 0:01:26]} 26. f4 {[%clk 0:01:37]}  Rf8 {[%clk 0:01:18]} 27. h4 {[%clk 0:01:28]}  f5 {[%clk 0:01:12]} 28. g5 {[%clk 0:01:22]}  Rb8 {[%clk 0:00:53]} 29. h5 {[%clk 0:01:22]}  Rb6 {[%clk 0:00:52]} 30. Ra4 {[%clk 0:01:18]}  Nb5 {[%clk 0:00:50]} 31. Be3 {[%clk 0:01:01]}  Kc8 {[%clk 0:00:49]} 32. Na1 {[%clk 0:01:01]}  Nc7 {[%clk 0:00:31]} 33. Bd2 {[%clk 0:01:01]}  Kb8 {[%clk 0:00:22]} 34. Nb3 {[%clk 0:00:59]}  Kc8 {[%clk 0:00:22]} 35. Nc5 {[%clk 0:00:58]}  Kd8 {[%clk 0:00:21]} 36. Be1 {[%clk 0:00:51]}  g6 {[%clk 0:00:17]} 37. hxg6 {[%clk 0:00:50]}  hxg6 {[%clk 0:00:18]} 38. Bc3 {[%clk 0:00:47]}  Ke7 {[%clk 0:00:11]} 39. Be1 {[%clk 0:00:35]}  Kf7 {[%clk 0:00:07]} 40. Bd2 {[%clk 0:00:29]}  Rb8 {[%clk 0:00:07]} 41. Be1 {[%clk 0:00:16]}  Rh8 {[%clk 0:00:05]} 42. Nxa6 {[%clk 0:00:14]}  Nxa6 {[%clk 0:00:05]} 43. Rxa6 {[%clk 0:00:13]}  Rh3+ {[%clk 0:00:03]} 44. Kd2 {[%clk 0:00:12]}  Nxd4 {[%clk 0:00:03]} 45. Bf2 {[%clk 0:00:10]}  Rh2 {[%clk 0:00:04]} 46. Ke3 {[%clk 0:00:06]}  Nc2+ {[%clk 0:00:04]} 47. Kf3 {[%clk 0:00:06]}  Nxb4 {[%clk 0:00:05]} 48. Bc5 {[%clk 0:00:06]}  Nd3 {[%clk 0:00:03]} 49. Ra7+ {[%clk 0:00:06]}  Kg8 {[%clk 0:00:03]} 50. Be7 {[%clk 0:00:06]}  Rh3+ {[%clk 0:00:02]} 51. Kg2 {[%clk 0:00:04]}  Nxf4+ {[%clk 0:00:03]} 52. Kf2 {[%clk 0:00:04]}  d4 {[%clk 0:00:04]} 53. Bf6 {[%clk 0:00:04]}  Nd3+ {[%clk 0:00:03]} 54. Ke2 {[%clk 0:00:04]}  Nf4+ {[%clk 0:00:03]} 55. Kf2 {[%clk 0:00:04]}  Kf8 {[%clk 0:00:03]} 56. Rd7 {[%clk 0:00:04]}  d3 {[%clk 0:00:03]} 57. Rd8+ {[%clk 0:00:03]}  Kf7 {[%clk 0:00:03]} 58. Rd6 {[%clk 0:00:03]}  Nd5 {[%clk 0:00:02]} 59. Rd7+ {[%clk 0:00:03]}  Ke8 {[%clk 0:00:02]} 60. Rd8+ {[%clk 0:00:04]}  Kf7 {[%clk 0:00:03]} 61. Rd7+ {[%clk 0:00:05]}  Kf8 {[%clk 0:00:03]} 62. Rd8+ {[%clk 0:00:05]}  Kf7 {[%clk 0:00:04]} 63. Rd7+ {[%clk 0:00:06]} 1/2-1/2


[Site "https://www.chess.com"]

[Event "Titled Tuesday Blitz May 31 Late 2022"]
[White "Matlakov, Maxim"]
[Black "Hasangatin, Ramil"]
[WhiteFideId "4168003"]
[BlackFideId "4122160"]
[WhiteElo "2669"]
[BlackElo "2399"]
[Result "1-0"]
[Round "05"]
[TimeControl "180+1"]
[Date "2022.05.31"]
[WhiteClock "0:00:51"]
[BlackClock "0:00:42"]

1. e4 {[%clk 0:03:00]}  d5 {[%clk 0:02:58]} 2. exd5 {[%clk 0:03:00]}  Qxd5 {[%clk 0:02:59]} 3. Nf3 {[%clk 0:03:00]}  Bg4 {[%clk 0:02:58]} 4. Be2 {[%clk 0:03:00]}  Nc6 {[%clk 0:02:59]} 5. O-O {[%clk 0:03:00]}  O-O-O {[%clk 0:02:59]} 6. h3 {[%clk 0:02:58]}  Bh5 {[%clk 0:02:59]} 7. Nc3 {[%clk 0:02:55]}  Qd7 {[%clk 0:02:59]} 8. b4 {[%clk 0:02:54]}  Nf6 {[%clk 0:02:57]} 9. b5 {[%clk 0:02:54]}  Bxf3 {[%clk 0:02:57]} 10. Bxf3 {[%clk 0:02:54]}  Nd4 {[%clk 0:02:58]} 11. a4 {[%clk 0:02:54]}  Kb8 {[%clk 0:02:57]} 12. Re1 {[%clk 0:02:53]}  e6 {[%clk 0:02:57]} 13. a5 {[%clk 0:02:52]}  Bb4 {[%clk 0:02:49]} 14. a6 {[%clk 0:02:27]}  Bxc3 {[%clk 0:02:49]} 15. dxc3 {[%clk 0:02:27]}  Nxf3+ {[%clk 0:02:49]} 16. Qxf3 {[%clk 0:02:27]}  Qd5 {[%clk 0:02:49]} 17. Qg3 {[%clk 0:01:54]}  b6 {[%clk 0:02:11]} 18. Bf4 {[%clk 0:01:53]}  Rd7 {[%clk 0:02:10]} 19. Rad1 {[%clk 0:01:48]}  Qxb5 {[%clk 0:02:06]} 20. Rxd7 {[%clk 0:01:30]}  Nxd7 {[%clk 0:01:57]} 21. Bxc7+ {[%clk 0:01:27]}  Kc8 {[%clk 0:01:55]} 22. Qxg7 {[%clk 0:01:28]}  Re8 {[%clk 0:01:42]} 23. Bg3 {[%clk 0:01:27]}  f5 {[%clk 0:00:56]} 24. Rd1 {[%clk 0:01:17]}  e5 {[%clk 0:00:50]} 25. Qf7 {[%clk 0:00:55]}  Rf8 {[%clk 0:00:45]} 26. Qe6 {[%clk 0:00:55]}  f4 {[%clk 0:00:42]} 27. Bh4 {[%clk 0:00:51]} 1-0


[Site "https://www.chess.com"]

[Event "Titled Tuesday Blitz May 31 Late 2022"]
[White "Murzin, Volodar"]
[Black "Romanchuk, Viktor"]
[WhiteFideId "44155573"]
[BlackFideId "14109271"]
[WhiteElo "2585"]
[BlackElo "2242"]
[Result "1-0"]
[Round "05"]
[TimeControl "180+1"]
[Date "2022.06.01"]
[WhiteClock "0:00:04"]
[BlackClock "0:00:40"]

1. e4 {[%clk 0:02:59]}  e6 {[%clk 0:02:59]} 2. d4 {[%clk 0:02:51]}  d5 {[%clk 0:02:59]} 3. Nc3 {[%clk 0:02:50]}  dxe4 {[%clk 0:02:59]} 4. Nxe4 {[%clk 0:02:50]}  Nd7 {[%clk 0:03:00]} 5. Nf3 {[%clk 0:02:45]}  Ngf6 {[%clk 0:03:01]} 6. Nxf6+ {[%clk 0:02:33]}  Nxf6 {[%clk 0:03:02]} 7. Bd3 {[%clk 0:02:33]}  c5 {[%clk 0:03:02]} 8. O-O {[%clk 0:02:28]}  cxd4 {[%clk 0:03:01]} 9. Nxd4 {[%clk 0:02:23]}  Bc5 {[%clk 0:03:02]} 10. Be3 {[%clk 0:02:17]}  Bb6 {[%clk 0:03:01]} 11. Re1 {[%clk 0:02:01]}  O-O {[%clk 0:02:59]} 12. c3 {[%clk 0:01:33]}  Re8 {[%clk 0:02:15]} 13. Nb5 {[%clk 0:00:51]}  Bxe3 {[%clk 0:02:05]} 14. Rxe3 {[%clk 0:00:49]}  Qb6 {[%clk 0:02:05]} 15. Nd6 {[%clk 0:00:31]}  Rd8 {[%clk 0:02:00]} 16. Nc4 {[%clk 0:00:30]}  Qc7 {[%clk 0:01:56]} 17. Ne5 {[%clk 0:00:22]}  b6 {[%clk 0:01:38]} 18. Qc2 {[%clk 0:00:15]}  Bb7 {[%clk 0:01:36]} 19. Rae1 {[%clk 0:00:16]}  Rd6 {[%clk 0:01:31]} 20. Rg3 {[%clk 0:00:13]}  Rad8 {[%clk 0:01:25]} 21. Qe2 {[%clk 0:00:11]}  Kf8 {[%clk 0:01:19]} 22. Qe3 {[%clk 0:00:08]}  h6 {[%clk 0:01:18]} 23. h4 {[%clk 0:00:02]}  Rd5 {[%clk 0:01:18]} 24. Qe2 {[%clk 0:00:02]}  R5d6 {[%clk 0:01:17]} 25. Re3 {[%clk 0:00:02]}  Ba8 {[%clk 0:01:16]} 26. Qf1 {[%clk 0:00:02]}  Nd5 {[%clk 0:01:15]} 27. Rf3 {[%clk 0:00:01]}  Nf6 {[%clk 0:01:16]} 28. Rg3 {[%clk 0:00:02]}  Rd5 {[%clk 0:01:15]} 29. Rge3 {[%clk 0:00:01]}  Qb7 {[%clk 0:01:08]} 30. f3 {[%clk 0:00:01]}  Qc7 {[%clk 0:01:07]} 31. g4 {[%clk 0:00:01]}  Qc5 {[%clk 0:01:07]} 32. Kh2 {[%clk 0:00:01]}  Qc7 {[%clk 0:01:03]} 33. Kh3 {[%clk 0:00:02]}  Nd7 {[%clk 0:01:03]} 34. Nxd7+ {[%clk 0:00:01]}  Qxd7 {[%clk 0:01:03]} 35. Be4 {[%clk 0:00:02]}  Rd2 {[%clk 0:01:02]} 36. R1e2 {[%clk 0:00:02]}  Bxe4 {[%clk 0:01:01]} 37. Rxe4 {[%clk 0:00:02]}  Rxe2 {[%clk 0:01:00]} 38. Qxe2 {[%clk 0:00:02]}  Qd2 {[%clk 0:01:00]} 39. Kg3 {[%clk 0:00:03]}  Qxe2 {[%clk 0:00:59]} 40. Rxe2 {[%clk 0:00:04]}  Rd1 {[%clk 0:00:59]} 41. h5 {[%clk 0:00:04]}  Ke7 {[%clk 0:00:56]} 42. Kf4 {[%clk 0:00:04]}  Ra1 {[%clk 0:00:53]} 43. a3 {[%clk 0:00:04]}  Rd1 {[%clk 0:00:53]} 44. Ke3 {[%clk 0:00:05]}  Kf6 {[%clk 0:00:51]} 45. Rd2 {[%clk 0:00:05]}  Rb1 {[%clk 0:00:45]} 46. Kd4 {[%clk 0:00:04]}  Rf1 {[%clk 0:00:43]} 47. Rd3 {[%clk 0:00:04]}  Rb1 {[%clk 0:00:42]} 48. b4 {[%clk 0:00:04]}  Ra1 {[%clk 0:00:42]} 49. c4 {[%clk 0:00:04]}  Ke7 {[%clk 0:00:42]} 50. c5 {[%clk 0:00:04]}  bxc5+ {[%clk 0:00:41]} 51. Kxc5 {[%clk 0:00:05]}  e5 {[%clk 0:00:39]} 52. Kb5 {[%clk 0:00:05]}  f5 {[%clk 0:00:39]} 53. gxf5 {[%clk 0:00:05]}  Kf6 {[%clk 0:00:40]} 54. Ka6 {[%clk 0:00:04]} 1-0


[Site "https://www.chess.com"]

[Event "Titled Tuesday Blitz May 31 Late 2022"]
[White "Papp, Levente"]
[Black "Bibasa, Bob"]
[WhiteFideId "751243"]
[BlackFideId "10000240"]
[WhiteElo "2308"]
[BlackElo "2032"]
[Result "1-0"]
[Round "05"]
[TimeControl "180+1"]
[Date "2022.06.01"]
[WhiteClock "0:00:07"]
[BlackClock "0:00:03"]

1. c4 {[%clk 0:03:00]}  c5 {[%clk 0:02:59]} 2. g3 {[%clk 0:02:59]}  g6 {[%clk 0:02:59]} 3. Bg2 {[%clk 0:02:59]}  Bg7 {[%clk 0:03:00]} 4. Nf3 {[%clk 0:02:57]}  Nc6 {[%clk 0:02:58]} 5. O-O {[%clk 0:02:57]}  e5 {[%clk 0:02:58]} 6. Nc3 {[%clk 0:02:56]}  Nge7 {[%clk 0:02:58]} 7. d3 {[%clk 0:02:50]}  O-O {[%clk 0:02:57]} 8. Ne1 {[%clk 0:02:50]}  d6 {[%clk 0:02:45]} 9. Nc2 {[%clk 0:02:50]}  f5 {[%clk 0:02:42]} 10. f4 {[%clk 0:02:40]}  Be6 {[%clk 0:02:27]} 11. Nd5 {[%clk 0:02:33]}  Bxd5 {[%clk 0:02:25]} 12. cxd5 {[%clk 0:02:33]}  Nd4 {[%clk 0:02:26]} 13. Rb1 {[%clk 0:02:16]}  Rb8 {[%clk 0:02:17]} 14. b4 {[%clk 0:02:12]}  b6 {[%clk 0:02:02]} 15. Nxd4 {[%clk 0:02:03]}  cxd4 {[%clk 0:02:02]} 16. Qa4 {[%clk 0:01:45]}  Qc7 {[%clk 0:01:53]} 17. Bd2 {[%clk 0:01:43]}  b5 {[%clk 0:01:50]} 18. Qb3 {[%clk 0:01:27]}  Kh8 {[%clk 0:01:41]} 19. Rbc1 {[%clk 0:01:21]}  Qd7 {[%clk 0:01:41]} 20. e3 {[%clk 0:01:07]}  dxe3 {[%clk 0:01:33]} 21. Bxe3 {[%clk 0:01:08]}  exf4 {[%clk 0:01:34]} 22. Bxf4 {[%clk 0:00:59]}  Rfc8 {[%clk 0:01:32]} 23. Bd2 {[%clk 0:00:37]}  Rxc1 {[%clk 0:01:28]} 24. Rxc1 {[%clk 0:00:38]}  Rc8 {[%clk 0:01:28]} 25. Re1 {[%clk 0:00:35]}  Be5 {[%clk 0:01:20]} 26. Be3 {[%clk 0:00:19]}  Rc3 {[%clk 0:01:09]} 27. Qd1 {[%clk 0:00:19]}  Qc7 {[%clk 0:00:58]} 28. d4 {[%clk 0:00:17]}  Bf6 {[%clk 0:00:58]} 29. Bf2 {[%clk 0:00:16]}  Qc4 {[%clk 0:00:51]} 30. Qe2 {[%clk 0:00:14]}  Qxe2 {[%clk 0:00:46]} 31. Rxe2 {[%clk 0:00:14]}  Rc1+ {[%clk 0:00:46]} 32. Bf1 {[%clk 0:00:15]}  Nxd5 {[%clk 0:00:46]} 33. Re6 {[%clk 0:00:15]}  Kg7 {[%clk 0:00:37]} 34. Rxd6 {[%clk 0:00:14]}  Nxb4 {[%clk 0:00:38]} 35. Rd7+ {[%clk 0:00:13]}  Kg8 {[%clk 0:00:35]} 36. Rxa7 {[%clk 0:00:13]}  Nd3 {[%clk 0:00:31]} 37. Rd7 {[%clk 0:00:13]}  Nxf2 {[%clk 0:00:31]} 38. Kxf2 {[%clk 0:00:14]}  Rc2+ {[%clk 0:00:31]} 39. Kf3 {[%clk 0:00:14]}  Rxa2 {[%clk 0:00:27]} 40. Bxb5 {[%clk 0:00:14]}  Rxh2 {[%clk 0:00:26]} 41. d5 {[%clk 0:00:14]}  g5 {[%clk 0:00:20]} 42. d6 {[%clk 0:00:12]}  Be5 {[%clk 0:00:18]} 43. Bc4+ {[%clk 0:00:11]}  Kf8 {[%clk 0:00:16]} 44. Rf7+ {[%clk 0:00:11]}  Ke8 {[%clk 0:00:16]} 45. d7+ {[%clk 0:00:11]}  Kd8 {[%clk 0:00:16]} 46. Rxf5 {[%clk 0:00:11]}  Bd6 {[%clk 0:00:15]} 47. Be6 {[%clk 0:00:09]}  Rb2 {[%clk 0:00:08]} 48. Rxg5 {[%clk 0:00:08]}  Rb8 {[%clk 0:00:05]} 49. Rg7 {[%clk 0:00:07]}  Kc7 {[%clk 0:00:04]} 50. Rxh7 {[%clk 0:00:08]}  Rf8+ {[%clk 0:00:04]} 51. Kg2 {[%clk 0:00:06]}  Kd8 {[%clk 0:00:03]} 52. g4 {[%clk 0:00:06]}  Rf6 {[%clk 0:00:03]} 53. Bf5 {[%clk 0:00:06]}  Rf8 {[%clk 0:00:02]} 54. Kf3 {[%clk 0:00:06]}  Be7 {[%clk 0:00:02]} 55. Ke4 {[%clk 0:00:07]}  Rxf5 {[%clk 0:00:02]} 56. gxf5 {[%clk 0:00:06]}  Bf6 {[%clk 0:00:02]} 57. Kd5 {[%clk 0:00:06]}  Be7 {[%clk 0:00:03]} 58. Ke6 {[%clk 0:00:07]}  Bg5 {[%clk 0:00:03]} 59. Rh8+ {[%clk 0:00:07]}  Kc7 {[%clk 0:00:03]} 60. f6 {[%clk 0:00:07]} 1-0


[Site "https://www.chess.com"]

[Event "Titled Tuesday Blitz May 31 Late 2022"]
[White "Petrovic, Aleksa"]
[Black "Barria Zuniga, Daniel"]
[WhiteFideId "967629"]
[BlackFideId "3400816"]
[WhiteElo "2144"]
[BlackElo "2414"]
[Result "1-0"]
[Round "05"]
[TimeControl "180+1"]
[Date "2022.06.01"]
[WhiteClock "0:00:04"]
[BlackClock "0:00:06"]

1. d4 {[%clk 0:03:00]}  g6 {[%clk 0:02:57]} 2. c4 {[%clk 0:03:00]}  Bg7 {[%clk 0:02:57]} 3. e4 {[%clk 0:03:00]}  d6 {[%clk 0:02:57]} 4. Nc3 {[%clk 0:03:00]}  e5 {[%clk 0:02:55]} 5. Nge2 {[%clk 0:02:58]}  Nc6 {[%clk 0:02:54]} 6. Be3 {[%clk 0:02:57]}  a6 {[%clk 0:02:41]} 7. Qd2 {[%clk 0:02:55]}  f5 {[%clk 0:02:36]} 8. f3 {[%clk 0:02:42]}  Nf6 {[%clk 0:02:35]} 9. d5 {[%clk 0:02:31]}  Na5 {[%clk 0:02:32]} 10. b3 {[%clk 0:02:13]}  O-O {[%clk 0:02:24]} 11. Bg5 {[%clk 0:01:52]}  h6 {[%clk 0:01:40]} 12. Bxh6 {[%clk 0:01:37]}  Nxe4 {[%clk 0:01:39]} 13. Nxe4 {[%clk 0:01:29]}  Qh4+ {[%clk 0:01:35]} 14. Nf2 {[%clk 0:01:26]}  Bxh6 {[%clk 0:01:24]} 15. Qxa5 {[%clk 0:01:26]}  e4 {[%clk 0:01:24]} 16. g3 {[%clk 0:01:20]}  Qh5 {[%clk 0:01:21]} 17. f4 {[%clk 0:00:58]}  g5 {[%clk 0:00:57]} 18. Qd2 {[%clk 0:00:53]}  Qf3 {[%clk 0:00:52]} 19. Nd4 {[%clk 0:00:41]}  Qh5 {[%clk 0:00:51]} 20. Be2 {[%clk 0:00:39]}  Qg6 {[%clk 0:00:51]} 21. Nh3 {[%clk 0:00:35]}  c5 {[%clk 0:00:46]} 22. dxc6 {[%clk 0:00:32]}  bxc6 {[%clk 0:00:46]} 23. Nxc6 {[%clk 0:00:28]}  Re8 {[%clk 0:00:38]} 24. Ne7+ {[%clk 0:00:22]}  Rxe7 {[%clk 0:00:36]} 25. Qd5+ {[%clk 0:00:22]}  Be6 {[%clk 0:00:32]} 26. Qxa8+ {[%clk 0:00:23]}  Re8 {[%clk 0:00:32]} 27. Qxa6 {[%clk 0:00:20]}  Bg7 {[%clk 0:00:20]} 28. Rd1 {[%clk 0:00:15]}  Bc3+ {[%clk 0:00:20]} 29. Kf2 {[%clk 0:00:14]}  Bb4 {[%clk 0:00:18]} 30. Nxg5 {[%clk 0:00:12]}  Bc5+ {[%clk 0:00:18]} 31. Kg2 {[%clk 0:00:11]}  Qf6 {[%clk 0:00:17]} 32. Nxe6 {[%clk 0:00:10]}  Rxe6 {[%clk 0:00:16]} 33. Rd5 {[%clk 0:00:07]}  Qb2 {[%clk 0:00:14]} 34. Qc8+ {[%clk 0:00:07]}  Kg7 {[%clk 0:00:11]} 35. Qd7+ {[%clk 0:00:06]}  Kf6 {[%clk 0:00:10]} 36. Rxf5+ {[%clk 0:00:05]}  Kxf5 {[%clk 0:00:10]} 37. Qf7+ {[%clk 0:00:05]}  Rf6 {[%clk 0:00:09]} 38. g4+ {[%clk 0:00:04]}  Kxf4 {[%clk 0:00:09]} 39. Rf1+ {[%clk 0:00:04]}  Ke3 {[%clk 0:00:10]} 40. Qxf6 {[%clk 0:00:04]}  Kxe2 {[%clk 0:00:06]} 41. Qxb2+ {[%clk 0:00:04]} 1-0


[Site "https://www.chess.com"]

[Event "Titled Tuesday Blitz May 31 Late 2022"]
[White "Prado Lobo, Jonas"]
[Black "Shirov, Alexei"]
[WhiteFideId "32050666"]
[BlackFideId "2209390"]
[WhiteElo "2214"]
[BlackElo "2678"]
[Result "0-1"]
[Round "05"]
[TimeControl "180+1"]
[Date "2022.05.31"]
[WhiteClock "0:00:02"]
[BlackClock "0:01:07"]

1. d4 {[%clk 0:03:00]}  d5 {[%clk 0:03:00]} 2. c4 {[%clk 0:03:00]}  c6 {[%clk 0:03:00]} 3. cxd5 {[%clk 0:03:00]}  cxd5 {[%clk 0:03:00]} 4. Bf4 {[%clk 0:03:01]}  Nc6 {[%clk 0:02:58]} 5. e3 {[%clk 0:03:01]}  Nf6 {[%clk 0:02:57]} 6. Nc3 {[%clk 0:03:01]}  Bg4 {[%clk 0:02:56]} 7. Qb3 {[%clk 0:02:58]}  Na5 {[%clk 0:02:55]} 8. Qa4+ {[%clk 0:02:58]}  Bd7 {[%clk 0:02:54]} 9. Qc2 {[%clk 0:02:58]}  Rc8 {[%clk 0:02:54]} 10. Nf3 {[%clk 0:02:56]}  b5 {[%clk 0:02:53]} 11. a3 {[%clk 0:02:54]}  Ne4 {[%clk 0:02:42]} 12. Bd3 {[%clk 0:02:51]}  Nxc3 {[%clk 0:02:35]} 13. bxc3 {[%clk 0:02:51]}  g6 {[%clk 0:02:33]} 14. Be5 {[%clk 0:02:44]}  Rg8 {[%clk 0:02:32]} 15. O-O {[%clk 0:02:34]}  f6 {[%clk 0:02:31]} 16. Bg3 {[%clk 0:02:34]}  e6 {[%clk 0:02:19]} 17. Rfe1 {[%clk 0:02:20]}  Kf7 {[%clk 0:02:13]} 18. h4 {[%clk 0:02:14]}  Be7 {[%clk 0:02:07]} 19. h5 {[%clk 0:01:32]}  Nc4 {[%clk 0:02:06]} 20. hxg6+ {[%clk 0:01:08]}  hxg6 {[%clk 0:02:05]} 21. e4 {[%clk 0:01:03]}  Nxa3 {[%clk 0:01:54]} 22. Qc1 {[%clk 0:01:03]}  b4 {[%clk 0:01:48]} 23. exd5 {[%clk 0:00:58]}  exd5 {[%clk 0:01:46]} 24. Qh6 {[%clk 0:00:54]}  Qf8 {[%clk 0:01:20]} 25. Qh7+ {[%clk 0:00:18]}  Qg7 {[%clk 0:01:20]} 26. Bxg6+ {[%clk 0:00:17]}  Kf8 {[%clk 0:01:20]} 27. Bf4 {[%clk 0:00:07]}  Qxh7 {[%clk 0:01:14]} 28. Bxh7 {[%clk 0:00:08]}  Rg4 {[%clk 0:01:09]} 29. Bh6+ {[%clk 0:00:06]}  Kf7 {[%clk 0:01:09]} 30. cxb4 {[%clk 0:00:02]}  Bxb4 {[%clk 0:01:07]} 0-1


[Site "https://www.chess.com"]

[Event "Titled Tuesday Blitz May 31 Late 2022"]
[White "Przybylski, Wojciech"]
[Black "Tristan, Leonardo"]
[WhiteFideId "1117599"]
[BlackFideId "113816"]
[WhiteElo "2133"]
[BlackElo "2404"]
[Result "1-0"]
[Round "05"]
[TimeControl "180+1"]
[Date "2022.06.01"]
[WhiteClock "0:00:03"]
[BlackClock "0:00:04"]

1. e4 {[%clk 0:02:53]}  d5 {[%clk 0:03:00]} 2. exd5 {[%clk 0:02:52]}  Qxd5 {[%clk 0:03:01]} 3. Qf3 {[%clk 0:02:51]}  Nf6 {[%clk 0:02:59]} 4. h3 {[%clk 0:02:50]}  Bf5 {[%clk 0:02:51]} 5. d3 {[%clk 0:02:47]}  Nc6 {[%clk 0:02:40]} 6. Nc3 {[%clk 0:02:45]}  Qxf3 {[%clk 0:02:40]} 7. Nxf3 {[%clk 0:02:44]}  e5 {[%clk 0:02:41]} 8. a3 {[%clk 0:02:43]}  O-O-O {[%clk 0:02:40]} 9. Bg5 {[%clk 0:02:37]}  Be7 {[%clk 0:02:36]} 10. O-O-O {[%clk 0:02:37]}  h6 {[%clk 0:02:36]} 11. Be3 {[%clk 0:02:35]}  Rhe8 {[%clk 0:02:31]} 12. Nd2 {[%clk 0:02:31]}  Nd4 {[%clk 0:02:21]} 13. g4 {[%clk 0:02:28]}  Bg6 {[%clk 0:02:08]} 14. Bg2 {[%clk 0:02:28]}  c6 {[%clk 0:02:08]} 15. Rhe1 {[%clk 0:02:25]}  Bd6 {[%clk 0:02:02]} 16. Nde4 {[%clk 0:02:25]}  Nxe4 {[%clk 0:02:00]} 17. Nxe4 {[%clk 0:02:20]}  Bc7 {[%clk 0:02:00]} 18. c3 {[%clk 0:02:19]}  Ne6 {[%clk 0:02:00]} 19. Nc5 {[%clk 0:01:58]}  Nxc5 {[%clk 0:01:57]} 20. Bxc5 {[%clk 0:01:57]}  Rxd3 {[%clk 0:01:52]} 21. Rxd3 {[%clk 0:01:51]}  Bxd3 {[%clk 0:01:52]} 22. Bxa7 {[%clk 0:01:36]}  b6 {[%clk 0:01:52]} 23. Bxc6 {[%clk 0:01:36]}  Re6 {[%clk 0:01:53]} 24. Bd5 {[%clk 0:01:34]}  Rf6 {[%clk 0:01:53]} 25. f3 {[%clk 0:01:26]}  Rd6 {[%clk 0:01:50]} 26. Ba8 {[%clk 0:00:54]}  Bc4 {[%clk 0:01:14]} 27. Rxe5 {[%clk 0:00:41]}  Rd8 {[%clk 0:01:07]} 28. Re7 {[%clk 0:00:31]}  Bb3 {[%clk 0:01:00]} 29. Re1 {[%clk 0:00:25]}  Bd5 {[%clk 0:00:37]} 30. Bxd5 {[%clk 0:00:22]}  Rxd5 {[%clk 0:00:38]} 31. Re7 {[%clk 0:00:20]}  Ra5 {[%clk 0:00:27]} 32. Bxb6 {[%clk 0:00:19]}  Bxb6 {[%clk 0:00:28]} 33. Rxf7 {[%clk 0:00:19]}  Be3+ {[%clk 0:00:11]} 34. Kc2 {[%clk 0:00:20]}  Rd5 {[%clk 0:00:12]} 35. c4 {[%clk 0:00:18]}  Rd2+ {[%clk 0:00:12]} 36. Kc3 {[%clk 0:00:18]}  Rf2 {[%clk 0:00:12]} 37. b4 {[%clk 0:00:18]}  Bc1 {[%clk 0:00:10]} 38. a4 {[%clk 0:00:17]}  Bd2+ {[%clk 0:00:10]} 39. Kb3 {[%clk 0:00:17]}  Re2 {[%clk 0:00:07]} 40. c5 {[%clk 0:00:17]}  Re3+ {[%clk 0:00:08]} 41. Kc4 {[%clk 0:00:18]}  Rc3+ {[%clk 0:00:07]} 42. Kd5 {[%clk 0:00:18]}  Rd3+ {[%clk 0:00:02]} 43. Kc6 {[%clk 0:00:18]}  Bxb4 {[%clk 0:00:02]} 44. Rxg7 {[%clk 0:00:16]}  Kd8 {[%clk 0:00:03]} 45. Rh7 {[%clk 0:00:13]}  Rc3 {[%clk 0:00:02]} 46. Rh8+ {[%clk 0:00:12]}  Ke7 {[%clk 0:00:02]} 47. Rh7+ {[%clk 0:00:12]}  Kf8 {[%clk 0:00:03]} 48. Kb5 {[%clk 0:00:12]}  Ba3 {[%clk 0:00:02]} 49. Rxh6 {[%clk 0:00:11]}  Rxc5+ {[%clk 0:00:02]} 50. Kb6 {[%clk 0:00:12]}  Rc3 {[%clk 0:00:03]} 51. a5 {[%clk 0:00:12]}  Rb3+ {[%clk 0:00:03]} 52. Kc6 {[%clk 0:00:11]}  Rxf3 {[%clk 0:00:04]} 53. a6 {[%clk 0:00:12]}  Rc3+ {[%clk 0:00:03]} 54. Kb5 {[%clk 0:00:09]}  Rc5+ {[%clk 0:00:01]} 55. Kb6 {[%clk 0:00:09]}  Rc3 {[%clk 0:00:01]} 56. a7 {[%clk 0:00:09]}  Bc5+ {[%clk 0:00:02]} 57. Kb7 {[%clk 0:00:10]}  Rb3+ {[%clk 0:00:02]} 58. Ka8 {[%clk 0:00:07]}  Ra3 {[%clk 0:00:02]} 59. Rh7 {[%clk 0:00:08]}  Be7 {[%clk 0:00:03]} 60. Kb7 {[%clk 0:00:06]}  Rb3+ {[%clk 0:00:03]} 61. Kc6 {[%clk 0:00:05]}  Rc3+ {[%clk 0:00:03]} 62. Kd5 {[%clk 0:00:04]}  Ra3 {[%clk 0:00:03]} 63. Rh8+ {[%clk 0:00:04]}  Kg7 {[%clk 0:00:03]} 64. a8=Q {[%clk 0:00:04]}  Rd3+ {[%clk 0:00:04]} 65. Ke4 {[%clk 0:00:04]}  Rd7 {[%clk 0:00:04]} 66. Qg8+ {[%clk 0:00:03]}  Kf6 {[%clk 0:00:04]} 67. Rh6# {[%clk 0:00:03]} 1-0


[Site "https://www.chess.com"]

[Event "Titled Tuesday Blitz May 31 Late 2022"]
[White "Rastbod, Ali"]
[Black "Donchenko, Alexander"]
[WhiteFideId "12567477"]
[BlackFideId "24603295"]
[WhiteElo "2147"]
[BlackElo "2572"]
[Result "0-1"]
[Round "05"]
[TimeControl "180+1"]
[Date "2022.05.31"]
[WhiteClock "0:00:52"]
[BlackClock "0:02:36"]

1. c4 {[%clk 0:03:00]}  b6 {[%clk 0:02:59]} 2. Nf3 {[%clk 0:02:57]}  Bb7 {[%clk 0:02:59]} 3. g3 {[%clk 0:02:57]}  g6 {[%clk 0:02:59]} 4. Bg2 {[%clk 0:02:57]}  Bg7 {[%clk 0:03:00]} 5. O-O {[%clk 0:02:58]}  Nf6 {[%clk 0:03:00]} 6. d4 {[%clk 0:02:59]}  O-O {[%clk 0:03:00]} 7. d5 {[%clk 0:02:59]}  e6 {[%clk 0:02:59]} 8. Nc3 {[%clk 0:02:56]}  exd5 {[%clk 0:02:59]} 9. cxd5 {[%clk 0:02:57]}  Re8 {[%clk 0:03:00]} 10. Nd4 {[%clk 0:02:42]}  Na6 {[%clk 0:03:00]} 11. e4 {[%clk 0:02:38]}  Nc5 {[%clk 0:03:00]} 12. Re1 {[%clk 0:02:37]}  Nxd5 {[%clk 0:02:59]} 13. Nxd5 {[%clk 0:02:18]}  Bxd5 {[%clk 0:02:59]} 14. exd5 {[%clk 0:02:19]}  Rxe1+ {[%clk 0:02:59]} 15. Qxe1 {[%clk 0:02:20]}  Bxd4 {[%clk 0:03:00]} 16. d6 {[%clk 0:02:17]}  c6 {[%clk 0:02:56]} 17. Be3 {[%clk 0:01:34]}  Qf6 {[%clk 0:02:51]} 18. Bxd4 {[%clk 0:01:28]}  Qxd4 {[%clk 0:02:51]} 19. Rd1 {[%clk 0:01:28]}  Qxb2 {[%clk 0:02:49]} 20. Qe7 {[%clk 0:01:28]}  Qxa2 {[%clk 0:02:46]} 21. h4 {[%clk 0:01:10]}  Qe6 {[%clk 0:02:43]} 22. Qg5 {[%clk 0:01:01]}  Re8 {[%clk 0:02:43]} 23. Kh2 {[%clk 0:00:59]}  a5 {[%clk 0:02:39]} 24. Bh3 {[%clk 0:00:54]}  Qe2 {[%clk 0:02:37]} 25. Bg4 {[%clk 0:00:52]}  Qxf2+ {[%clk 0:02:36]} 0-1


[Site "https://www.chess.com"]